[Event "FIDE Womens World Cup 2021"]
[Site "Sochi"]
[Date "2021.07.14"]
[Round "1.4"]
[White "Cyfka, Karina"]
[Black "Demchenko, Svitlana"]
[Result "1/2-1/2"]
[ECO "E11"]
[WhiteElo "2417"]
[BlackElo "2089"]
[Annotator "NA"]
[PlyCount "71"]
[EventDate "2021.07.12"]
[EventType "k.o."]
[EventCountry "RUS"]
[SourceTitle "playchess.com"]
[Source "ChessBase"]
[SourceQuality "1"]
[TimeControl "1500+10"]

1. d4 {[%emt 0:00:03]} Nf6 {[%emt 0:00:02]} 2. c4 {[%emt 0:00:02]} e6 {[%emt 0:00:00]} 3. Nf3 {[%emt 0:00:01]} Bb4+ {[%emt 0:00:02]} 4. Nbd2 {[%emt 0:00:02]} b6 {[%emt 0:00:04]} 5. a3 {[%emt 0:00:07]} Bxd2+ {[%emt 0:00:02]} 6. Qxd2 {[%emt 0:00:03]} Bb7 {[%emt 0:00:03]} 7. e3 {[%emt 0:00:05]} Ne4 {[%emt 0:01:54]} 8. Qc2 {[%emt 0:00:24]} O-O {[%emt 0:00:13]} 9. Be2 {[%emt 0:01:10]} d6 {[%emt 0:00:13]} 10. O-O {[%emt 0:00:22]} Nd7 {[%emt 0:00:17]} 11. b4 {[%emt 0:00:38]} f5 {[%emt 0:00:29]} 12. Bb2 {[%emt 0:04:33]} Ng5 {[%emt 0:00:40]} 13. Ne1 {[%emt 0:00:01]} f4 {[%emt 0:01:32]} 14. exf4 {[%emt 0:00:59]} Rxf4 {[%emt 0:00:06]} 15. f3 {[%emt 0:00:35]} Qe7 {[%emt 0:03:37]} 16. Rd1 {[%emt 0:01:01]} e5 {[%emt 0:04:25]} 17. d5 {[%emt 0:01:18]} h6 {[%emt 0:00:51]} (17... e4 $16 {might work better.}) 18. Nd3 {[%emt 0:01:11]} Rf7 {[%emt 0:00:23]} 19. Nf2 {[%emt 0:00:23]} Raf8 {[%emt 0:00:17]} 20. Bc1 {[%emt 0:00:29]} Bc8 {[%emt 0:00:21]} 21. Kh1 {[%emt 0:01:38]} Nf6 {[%emt 0:01:00]} 22. Bd3 {[%emt 0:01:11]} e4 {[%emt 0:01:06]} 23. fxe4 {[%emt 0:01:50]} Nfxe4 {[%emt 0:01:14]} 24. Nxe4 {[%emt 0:01:11]} Nxe4 {[%emt 0:00:38]} 25. Rxf7 {[%emt 0:03:35]} Qxf7 {[%emt 0:00:11]} 26. Kg1 {[%emt 0:00:56]} Qf2+ {[%emt 0:01:20]} 27. Qxf2 $1 {[%emt 0:00:09]} Nxf2 {[%emt 0:00:01]} 28. Rd2 {[%emt 0:00:05]} Nxd3 {[%emt 0:00:11]} 29. Rxd3 {[%emt 0:00:01]} Bg4 $11 {[%emt 0:01:09]} 30. Re3 {[%emt 0:00:25]} Bh5 {[%emt 0:01:04]} 31. h3 {[%emt 0:01:05]} Bg6 {[%emt 0:00:57]} 32. Bb2 {[%emt 0:00:53]} Rf4 {[%emt 0:00:47]} 33. Re7 {[%emt 0:00:05]} Rf7 {[%emt 0:00:01]} 34. Re3 {[%emt 0:00:36]} Rf4 {[%emt 0:00:02]} 35. Re7 {[%emt 0:00:17]} Rf7 {[%emt 0:00:02]} 36. Re3 {[%emt 0:00:02]} 1/2-1/2

[Event "FIDE Womens World Cup 2021"]
[Site "Sochi"]
[Date "2021.07.14"]
[Round "1.4"]
[White "Skripchenko, Almira"]
[Black "Wafa, Shahenda"]
[Result "1-0"]
[ECO "A06"]
[WhiteElo "2411"]
[BlackElo "2106"]
[Annotator "NA"]
[PlyCount "91"]
[EventDate "2021.07.12"]
[EventType "k.o."]
[EventCountry "RUS"]
[SourceTitle "playchess.com"]
[Source "ChessBase"]
[SourceQuality "1"]
[TimeControl "1500+10"]

1. Nf3 {[%emt 0:00:03]} d5 {[%emt 0:00:12]} 2. g3 {[%emt 0:00:04]} Nf6 {[%emt 0:00:18]} 3. Bg2 {[%emt 0:00:02]} c5 {[%emt 0:00:29]} 4. O-O {[%emt 0:00:13]} Nc6 {[%emt 0:00:05]} 5. d3 {[%emt 0:00:07]} e5 {[%emt 0:00:59]} 6. Nbd2 {[%emt 0:00:10]} Be7 {[%emt 0:00:25]} 7. e4 {[%emt 0:00:04]} dxe4 {[%emt 0:00:05]} 8. dxe4 {[%emt 0:00:05]} O-O {[%emt 0:00:13]} 9. c3 {[%emt 0:00:04]} Be6 {[%emt 0:01:10]} 10. Qe2 {[%emt 0:00:44]} Qc7 {[%emt 0:01:34]} 11. Re1 {[%emt 0:00:41]} a6 {[%emt 0:00:54]} 12. Ng5 {[%emt 0:00:45]} Bg4 {[%emt 0:00:23]} 13. Bf3 {[%emt 0:00:27]} Bxf3 {[%emt 0:00:09]} 14. Ngxf3 {[%emt 0:00:13]} b5 {[%emt 0:00:16]} 15. Nh4 {[%emt 0:00:20]} Rfe8 {[%emt 0:00:32]} 16. Nf1 {[%emt 0:00:17]} g6 {[%emt 0:01:11]} 17. Bg5 {[%emt 0:00:39]} Nh5 {[%emt 0:01:25]} 18. Bxe7 {[%emt 0:00:55]} Qxe7 {[%emt 0:00:07]} 19. Nf5 {[%emt 0:00:18]} Qf8 {[%emt 0:02:22]} 20. N5e3 {[%emt 0:00:41]} Nf6 {[%emt 0:00:44]} 21. Qf3 {[%emt 0:00:03]} Qe7 {[%emt 0:00:30]} 22. a4 {[%emt 0:00:16]} b4 {[%emt 0:01:55]} 23. Nc4 {[%emt 0:02:10]} Rad8 {[%emt 0:00:36]} 24. Nfe3 {[%emt 0:00:42]} Qe6 {[%emt 0:01:15]} 25. Rad1 {[%emt 0:00:25]} Ne7 {[%emt 0:00:49]} 26. Kg2 {[%emt 0:01:15]} Kg7 {[%emt 0:00:47]} 27. a5 {[%emt 0:00:14]} h5 {[%emt 0:01:50]} 28. h4 {[%emt 0:00:14]} Ng4 {[%emt 0:00:42]} 29. Nxg4 {[%emt 0:01:39]} hxg4 {[%emt 0:00:03]} 30. Qe2 {[%emt 0:00:05]} Ng8 {[%emt 0:00:43]} 31. Nb6 {[%emt 0:00:30]} Qb3 {[%emt 0:01:25]} 32. Nd5 {[%emt 0:00:14]} bxc3 {[%emt 0:00:53]} 33. bxc3 {[%emt 0:00:05]} Qb7 {[%emt 0:01:39]} 34. Qxg4 {[%emt 0:00:37]} Ne7 {[%emt 0:00:22]} 35. c4 {[%emt 0:03:10]} Nxd5 $18 {[%emt 0:00:13]} 36. cxd5 {[%emt 0:00:06]} Qb4 {[%emt 0:00:25]} 37. h5 {[%emt 0:00:18]} Qxa5 {[%emt 0:00:17]} 38. hxg6 {[%emt 0:00:34]} fxg6 {[%emt 0:00:03]} 39. Rh1 {[%emt 0:00:03]} Qc7 {[%emt 0:00:41]} 40. Qg5 {[%emt 0:00:03]} Rh8 {[%emt 0:01:10]} 41. d6 {[%emt 0:01:20]} Qf7 {[%emt 0:00:26]} 42. Rxh8 {[%emt 0:00:11]} Rxh8 {[%emt 0:00:03]} 43. d7 {[%emt 0:00:16]} Qe6 {[%emt 0:00:19]} 44. d8=Q {[%emt 0:00:46]} Qh3+ {[%emt 0:00:35]} 45. Kf3 {[%emt 0:00:01]} Rxd8 {[%emt 0:00:05]} 46. Qxe5+ {[%emt 0:01:01]} 1-0

[Event "FIDE Womens World Cup 2021"]
[Site "Sochi"]
[Date "2021.07.14"]
[Round "1.4"]
[White "Hoang, Thanh Trang"]
[Black "Frayna, Janelle Mae"]
[Result "1/2-1/2"]
[ECO "A40"]
[WhiteElo "2404"]
[BlackElo "2179"]
[Annotator "NA"]
[PlyCount "125"]
[EventDate "2021.07.12"]
[EventType "k.o."]
[EventCountry "RUS"]
[SourceTitle "playchess.com"]
[Source "ChessBase"]
[SourceQuality "1"]
[TimeControl "1500+10"]

1. d4 {[%emt 0:00:03]} g6 {[%emt 0:00:01]} 2. Bf4 {[%emt 0:00:26]} Bg7 {[%emt 0:00:01]} 3. e3 {[%emt 0:00:07]} d6 {[%emt 0:00:03]} 4. Nf3 {[%emt 0:00:41]} Nd7 {[%emt 0:00:14]} 5. c3 {[%emt 0:01:31]} e5 {[%emt 0:03:52]} 6. dxe5 {[%emt 0:00:42]} dxe5 {[%emt 0:00:03]} 7. Bg3 {[%emt 0:00:09]} Ne7 {[%emt 0:00:40]} 8. Bc4 {[%emt 0:01:09]} O-O {[%emt 0:01:55]} 9. Nbd2 {[%emt 0:00:30]} Nf5 {[%emt 0:00:39]} 10. e4 {[%emt 0:02:16]} Nd6 {[%emt 0:00:46]} 11. Bb3 {[%emt 0:01:16]} Qe7 {[%emt 0:00:32]} 12. O-O {[%emt 0:00:48]} a5 {[%emt 0:00:21]} 13. Re1 {[%emt 0:01:59]} Kh8 {[%emt 0:04:42]} 14. Nc4 {[%emt 0:00:47]} Nxc4 {[%emt 0:00:15]} 15. Bxc4 {[%emt 0:00:02]} Nb6 {[%emt 0:00:40]} 16. Bf1 {[%emt 0:02:12]} Bg4 {[%emt 0:00:14]} 17. h3 {[%emt 0:00:09]} Rfd8 {[%emt 0:00:23]} 18. Qe2 {[%emt 0:01:24]} Bd7 {[%emt 0:02:20]} 19. Rad1 {[%emt 0:01:10]} Bc6 {[%emt 0:00:07]} 20. Qe3 {[%emt 0:00:57]} Na4 {[%emt 0:00:37]} 21. b3 {[%emt 0:01:02]} Nc5 {[%emt 0:00:34]} 22. Bd3 {[%emt 0:02:55]} Nxd3 {[%emt 0:00:46]} 23. Rxd3 {[%emt 0:00:02]} Rxd3 {[%emt 0:00:02]} 24. Qxd3 {[%emt 0:00:02]} Rd8 {[%emt 0:00:01]} 25. Qe3 {[%emt 0:00:30]} f6 {[%emt 0:00:16]} 26. Qc1 {[%emt 0:01:50]} Bf8 {[%emt 0:00:35]} 27. Qc2 {[%emt 0:00:29]} Qd6 {[%emt 0:00:31]} 28. Nd4 {[%emt 0:01:29]} Be8 {[%emt 0:00:58]} 29. Kh2 {[%emt 0:00:48]} Qd7 {[%emt 0:00:58]} 30. Nf3 {[%emt 0:00:50]} Kg8 {[%emt 0:01:07]} 31. Re2 {[%emt 0:00:06]} Qd3 {[%emt 0:00:16]} 32. Bh4 {[%emt 0:00:43]} g5 {[%emt 0:01:19]} 33. Bg3 {[%emt 0:00:07]} Bc6 {[%emt 0:00:31]} 34. Ne1 {[%emt 0:00:22]} Qxc2 {[%emt 0:00:11]} 35. Nxc2 {[%emt 0:00:01]} Rd3 {[%emt 0:00:48]} 36. c4 {[%emt 0:00:02]} h5 {[%emt 0:01:42]} 37. f3 {[%emt 0:00:04]} Kf7 {[%emt 0:00:13]} 38. Be1 {[%emt 0:00:29]} b6 {[%emt 0:00:14]} 39. Rd2 {[%emt 0:00:34]} Rxd2 {[%emt 0:00:55]} 40. Bxd2 {[%emt 0:00:01]} Ke6 {[%emt 0:00:17]} 41. Kg1 {[%emt 0:00:18]} g4 {[%emt 0:00:22]} 42. hxg4 {[%emt 0:00:07]} hxg4 {[%emt 0:00:01]} 43. Kf2 {[%emt 0:00:11]} Bc5+ {[%emt 0:00:09]} 44. Be3 {[%emt 0:00:11]} Be7 {[%emt 0:00:21]} 45. Kg3 {[%emt 0:00:17]} gxf3 {[%emt 0:00:01]} 46. gxf3 {[%emt 0:00:01]} f5 {[%emt 0:00:05]} 47. exf5+ {[%emt 0:00:08]} Kxf5 {[%emt 0:00:01]} 48. Kf2 {[%emt 0:00:15]} Bd8 {[%emt 0:00:27]} 49. Ke2 {[%emt 0:00:04]} Bh4 {[%emt 0:00:29]} 50. Na3 {[%emt 0:00:28]} e4 {[%emt 0:00:20]} 51. fxe4+ {[%emt 0:00:03]} Kxe4 {[%emt 0:00:01]} 52. Nb5 {[%emt 0:00:16]} Bg3 {[%emt 0:00:23]} 53. Bg5 {[%emt 0:00:20]} Bxb5 {[%emt 0:00:22]} 54. cxb5 {[%emt 0:00:01]} Kd4 {[%emt 0:00:03]} 55. Kd2 {[%emt 0:00:24]} a4 {[%emt 0:00:16]} 56. bxa4 {[%emt 0:00:08]} Kc4 {[%emt 0:00:02]} 57. Kc2 {[%emt 0:00:18]} Kb4 {[%emt 0:00:03]} 58. Kd3 {[%emt 0:00:03]} Kxa4 {[%emt 0:00:14]} 59. Kc4 {[%emt 0:00:01]} Ka3 {[%emt 0:00:03]} 60. Kd5 {[%emt 0:00:02]} Kxa2 {[%emt 0:00:03]} 61. Kc6 {[%emt 0:00:00]} Kb3 {[%emt 0:00:02]} 62. Bf6 {[%emt 0:00:12]} Kc4 {[%emt 0:00:01]} 63. Bg5 {[%emt 0:00:01]} 1/2-1/2

[Event "FIDE Womens World Cup 2021"]
[Site "Sochi"]
[Date "2021.07.14"]
[Round "1.4"]
[White "Yu, Jennifer"]
[Black "Kulon, Klaudia"]
[Result "1-0"]
[ECO "A52"]
[WhiteElo "2289"]
[BlackElo "2363"]
[Annotator "NA"]
[PlyCount "117"]
[EventDate "2021.07.12"]
[EventType "k.o."]
[EventCountry "RUS"]
[SourceTitle "playchess.com"]
[Source "ChessBase"]
[SourceQuality "1"]
[TimeControl "1500+10"]

1. d4 {[%emt 0:00:02]} Nf6 {[%emt 0:00:02]} 2. c4 {[%emt 0:00:02]} e5 {[%emt 0:00:02]} 3. dxe5 {[%emt 0:00:02]} Ng4 {[%emt 0:00:01]} 4. e3 {[%emt 0:00:10]} Nxe5 {[%emt 0:00:04]} 5. f4 {[%emt 0:00:02]} Nec6 {[%emt 0:00:08]} 6. Nf3 {[%emt 0:00:10]} d6 {[%emt 0:00:18]} 7. a3 {[%emt 0:00:27]} a5 {[%emt 0:00:12]} 8. Bd3 {[%emt 0:00:11]} Na6 {[%emt 0:00:18]} 9. Nc3 {[%emt 0:01:21]} Nc5 {[%emt 0:00:08]} 10. Bc2 {[%emt 0:00:36]} g6 {[%emt 0:01:29]} 11. O-O {[%emt 0:01:18]} Bg7 {[%emt 0:00:03]} 12. e4 {[%emt 0:01:25]} Bg4 {[%emt 0:00:48]} 13. Be3 {[%emt 0:00:09]} Ne6 {[%emt 0:00:41]} 14. h3 {[%emt 0:03:35]} Bxf3 {[%emt 0:00:03]} 15. Qxf3 {[%emt 0:00:05]} Ned4 {[%emt 0:00:14]} 16. Qf2 {[%emt 0:00:04]} Nxc2 {[%emt 0:00:27]} 17. Qxc2 {[%emt 0:00:02]} O-O {[%emt 0:00:03]} 18. Rad1 {[%emt 0:00:31]} f5 {[%emt 0:05:47]} 19. e5 {[%emt 0:00:23]} Re8 {[%emt 0:00:01]} 20. Bf2 {[%emt 0:01:08]} Qe7 {[%emt 0:00:30]} 21. exd6 {[%emt 0:03:09]} cxd6 {[%emt 0:00:01]} 22. Rfe1 {[%emt 0:00:01]} Qf7 {[%emt 0:00:23]} 23. Rxe8+ {[%emt 0:00:28]} Rxe8 {[%emt 0:00:01]} 24. Nb5 {[%emt 0:00:01]} Qf6 {[%emt 0:01:14]} 25. Nxd6 {[%emt 0:00:51]} Re7 {[%emt 0:00:54]} 26. b3 {[%emt 0:01:22]} h6 {[%emt 0:00:07]} 27. Qd2 {[%emt 0:02:26]} Kh7 {[%emt 0:00:55]} 28. b4 {[%emt 0:00:04]} a4 {[%emt 0:02:42]} 29. b5 {[%emt 0:00:31]} Nd8 {[%emt 0:00:02]} 30. Nc8 {[%emt 0:01:01]} Re8 {[%emt 0:00:23]} 31. Qd7 {[%emt 0:00:20]} Qe6 {[%emt 0:00:40]} 32. c5 {[%emt 0:00:57]} Kh8 {[%emt 0:03:39]} 33. Qxe6 {[%emt 0:01:16]} Nxe6 {[%emt 0:00:01]} 34. Nd6 {[%emt 0:00:00]} Rb8 {[%emt 0:00:01]} 35. g3 {[%emt 0:03:34]} Bb2 {[%emt 0:00:02]} 36. Re1 {[%emt 0:00:12]} Nc7 {[%emt 0:01:18]} 37. Re7 {[%emt 0:00:49]} Nd5 {[%emt 0:00:07]} 38. Rd7 {[%emt 0:00:19]} Nf6 {[%emt 0:00:38]} 39. Rxb7 {[%emt 0:00:48]} Ra8 {[%emt 0:00:29]} 40. c6 {[%emt 0:00:12]} Bxa3 {[%emt 0:00:08]} 41. Nc4 {[%emt 0:00:35]} Bf8 {[%emt 0:01:01]} 42. Bd4 {[%emt 0:00:31]} Bg7 {[%emt 0:00:01]} 43. c7 {[%emt 0:00:01]} Nd7 {[%emt 0:00:07]} 44. Bxg7+ {[%emt 0:00:13]} Kxg7 {[%emt 0:00:01]} 45. c8=Q {[%emt 0:00:03]} Rxc8 {[%emt 0:00:01]} 46. Rxd7+ {[%emt 0:00:01]} Kf6 {[%emt 0:00:01]} 47. Rd4 {[%emt 0:00:24]} g5 {[%emt 0:00:13]} 48. Na3 {[%emt 0:00:11]} Rc3 {[%emt 0:00:06]} 49. Rxa4 {[%emt 0:00:05]} Rxg3+ {[%emt 0:00:02]} 50. Kh2 {[%emt 0:00:01]} Rb3 {[%emt 0:00:02]} 51. Ra6+ {[%emt 0:00:06]} Kg7 {[%emt 0:00:03]} 52. fxg5 {[%emt 0:00:08]} hxg5 {[%emt 0:00:01]} 53. b6 {[%emt 0:00:47]} Kg6 {[%emt 0:00:01]} 54. Nc4 {[%emt 0:00:15]} Kh5 {[%emt 0:00:02]} 55. Ra3 {[%emt 0:00:11]} Rb4 {[%emt 0:00:07]} 56. Rc3 {[%emt 0:00:06]} f4 {[%emt 0:00:13]} 57. Rc2 {[%emt 0:00:14]} Kh4 {[%emt 0:00:15]} 58. Rb2 {[%emt 0:00:12]} Rxc4 {[%emt 0:00:07]} 59. b7 1-0

[Event "FIDE Womens World Cup 2021"]
[Site "Sochi"]
[Date "2021.07.14"]
[Round "1.4"]
[White "Narva, Mai"]
[Black "Mammadova, Gulnar"]
[Result "1/2-1/2"]
[ECO "C47"]
[WhiteElo "2276"]
[BlackElo "2385"]
[Annotator "ChessBase"]
[PlyCount "223"]
[EventDate "2021.07.12"]
[EventType "k.o."]
[EventCountry "RUS"]
[SourceTitle "playchess.com"]
[Source "ChessBase"]
[SourceQuality "1"]
[TimeControl "1500+10"]

1. e4 {[%emt 0:00:03]} e5 {[%emt 0:00:01]} 2. Nf3 {[%emt 0:00:06]} Nc6 {[%emt 0:00:03]} 3. Nc3 {[%emt 0:00:05]} Nf6 {[%emt 0:00:02]} 4. g3 {[%emt 0:00:13]} d5 {[%emt 0:00:35]} 5. exd5 {[%emt 0:00:06]} Nxd5 {[%emt 0:00:03]} 6. Bg2 {[%emt 0:00:11]} Nxc3 {[%emt 0:00:17]} 7. bxc3 {[%emt 0:00:08]} Bc5 {[%emt 0:00:26]} 8. O-O {[%emt 0:00:22]} O-O {[%emt 0:00:03]} 9. d3 {[%emt 0:00:30]} Bg4 {[%emt 0:01:39]} 10. Qe1 {[%emt 0:00:07]} Bd6 {[%emt 0:04:25]} 11. Ng5 {[%emt 0:02:58]} Bf5 {[%emt 0:01:06]} 12. Rb1 {[%emt 0:02:25]} Rb8 {[%emt 0:00:43]} 13. Be3 {[%emt 0:02:53]} h6 {[%emt 0:01:36]} 14. Ne4 {[%emt 0:00:13]} Qd7 {[%emt 0:02:23]} 15. f4 {[%emt 0:08:54]} Bxe4 {[%emt 0:02:26]} 16. Bxe4 {[%emt 0:00:17]} exf4 {[%emt 0:00:26]} 17. Bxf4 {[%emt 0:00:14]} Bxf4 {[%emt 0:00:16]} 18. Rxf4 {[%emt 0:00:18]} f5 {[%emt 0:01:36]} 19. Bg2 {[%emt 0:00:35]} b6 {[%emt 0:01:01]} 20. Qf2 {[%emt 0:05:07]} Rf6 {[%emt 0:01:48]} 21. Rb5 {[%emt 0:00:47]} Rbf8 {[%emt 0:01:33]} 22. c4 {[%emt 0:01:34]} Ne7 {[%emt 0:00:58]} 23. Rd4 {[%emt 0:00:37]} Qc8 {[%emt 0:00:48]} 24. c5 {[%emt 0:00:15]} c6 {[%emt 0:01:29]} 25. Rb1 {[%emt 0:00:05]} bxc5 {[%emt 0:00:44]} 26. Rc4 {[%emt 0:00:02]} Ng6 {[%emt 0:00:15]} 27. Qxc5 {[%emt 0:00:04]} f4 {[%emt 0:00:15]} 28. Bxc6 {[%emt 0:00:12]} Kh8 {[%emt 0:01:20]} 29. Be4 {[%emt 0:00:20]} Qh3 {[%emt 0:01:10]} 30. Bg2 {[%emt 0:00:16]} Qe6 {[%emt 0:00:07]} 31. Re4 {[%emt 0:00:10]} Qxa2 {[%emt 0:00:04]} 32. Rf1 {[%emt 0:00:08]} fxg3 {[%emt 0:00:10]} 33. Rxf6 {[%emt 0:00:09]} Rxf6 {[%emt 0:00:32]} 34. Re8+ {[%emt 0:00:13]} Kh7 {[%emt 0:00:02]} 35. hxg3 {[%emt 0:00:03]} Qf7 {[%emt 0:00:23]} 36. Ra8 {[%emt 0:00:06]} Rb6 {[%emt 0:00:10]} 37. Kh2 {[%emt 0:00:18]} Rf6 {[%emt 0:00:14]} 38. Rxa7 {[%emt 0:00:07]} Qe8 {[%emt 0:00:05]} 39. Qc7 {[%emt 0:00:15]} Qf8 {[%emt 0:00:07]} 40. d4 {[%emt 0:00:08]} h5 {[%emt 0:00:03]} 41. Ra8 {[%emt 0:00:12]} Qb4 {[%emt 0:00:18]} 42. Ra5 {[%emt 0:00:11]} Kh6 {[%emt 0:00:11]} 43. Ra7 {[%emt 0:00:11]} Qf8 {[%emt 0:00:03]} 44. Qc3 {[%emt 0:00:06]} h4 {[%emt 0:00:06]} 45. Qe3+ {[%emt 0:00:10]} Kh7 {[%emt 0:00:01]} 46. Ra5 {[%emt 0:00:13]} hxg3+ {[%emt 0:00:25]} 47. Qxg3 {[%emt 0:00:02]} Qd6 {[%emt 0:00:09]} 48. c4 {[%emt 0:00:17]} Qxg3+ {[%emt 0:00:17]} 49. Kxg3 {[%emt 0:00:01]} Nf4 {[%emt 0:00:10]} 50. Bf3 {[%emt 0:00:20]} Kg8 {[%emt 0:00:08]} 51. c5 {[%emt 0:00:10]} Ne6 {[%emt 0:00:15]} 52. d5 {[%emt 0:00:09]} Nd4 {[%emt 0:00:04]} 53. Be4 {[%emt 0:00:04]} Ne2+ {[%emt 0:00:02]} 54. Kg2 {[%emt 0:00:08]} Nf4+ {[%emt 0:00:01]} 55. Kh2 {[%emt 0:00:05]} Kf8 {[%emt 0:00:24]} 56. Ra8+ {[%emt 0:00:23]} Ke7 {[%emt 0:00:06]} 57. Ra7+ {[%emt 0:00:13]} Kd8 {[%emt 0:00:04]} 58. Rxg7 {[%emt 0:00:02]} Rh6+ {[%emt 0:00:21]} 59. Kg1 {[%emt 0:00:01]} Nxd5 {[%emt 0:00:13]} 60. Bxd5 {[%emt 0:00:25]} Rh5 {[%emt 0:00:01]} 61. Be4 {[%emt 0:00:07]} Rxc5 {[%emt 0:00:01]} 62. Kf2 {[%emt 0:00:11]} Rc3 {[%emt 0:00:02]} 63. Bf3 {[%emt 0:00:05]} Rc7 {[%emt 0:00:06]} 64. Rg6 {[%emt 0:00:05]} Ke7 {[%emt 0:00:04]} 65. Kg3 {[%emt 0:00:03]} Rc4 {[%emt 0:00:03]} 66. Kf2 {[%emt 0:00:10]} Rc3 {[%emt 0:00:05]} 67. Ra6 {[%emt 0:00:27]} Kd7 {[%emt 0:00:07]} 68. Kg3 {[%emt 0:00:11]} Rc4 {[%emt 0:00:02]} 69. Bg4+ {[%emt 0:00:10]} Kc7 {[%emt 0:00:00]} 70. Kf3 {[%emt 0:00:10]} Rc6 {[%emt 0:00:03]} 71. Ra7+ {[%emt 0:00:04]} Kd6 {[%emt 0:00:02]} 72. Bf5 {[%emt 0:00:10]} Rc4 {[%emt 0:00:02]} 73. Be4 {[%emt 0:00:05]} Ke5 {[%emt 0:00:03]} 74. Ra5+ {[%emt 0:00:04]} Kd6 {[%emt 0:00:34]} 75. Kf4 {[%emt 0:00:24]} Rc5 {[%emt 0:00:08]} 76. Ra6+ {[%emt 0:00:04]} Kc7 {[%emt 0:00:08]} 77. Ke3 {[%emt 0:00:17]} Rc4 {[%emt 0:00:10]} 78. Bd5 {[%emt 0:00:12]} Rb4 {[%emt 0:00:03]} 79. Kd3 {[%emt 0:00:04]} Rb1 {[%emt 0:00:41]} 80. Kd4 {[%emt 0:00:09]} Rb5 {[%emt 0:00:30]} 81. Ke5 {[%emt 0:00:19]} Rb8 {[%emt 0:00:22]} 82. Rc6+ {[%emt 0:00:05]} Kd7 {[%emt 0:00:13]} 83. Rh6 {[%emt 0:00:15]} Re8+ {[%emt 0:00:03]} 84. Kd4 {[%emt 0:00:03]} Rf8 {[%emt 0:00:25]} 85. Kc5 {[%emt 0:00:16]} Rc8+ {[%emt 0:00:03]} 86. Bc6+ {[%emt 0:00:05]} Ke7 {[%emt 0:00:01]} 87. Kd5 {[%emt 0:00:04]} Rg8 {[%emt 0:00:03]} 88. Kd4 {[%emt 0:00:22]} Rg4+ {[%emt 0:00:13]} 89. Ke5 {[%emt 0:00:09]} Rg5+ {[%emt 0:00:01]} 90. Kf4 {[%emt 0:00:01]} Rc5 {[%emt 0:00:15]} 91. Be4 {[%emt 0:00:07]} Kd7 {[%emt 0:00:03]} 92. Ra6 {[%emt 0:00:15]} Kc7 {[%emt 0:00:10]} 93. Ke3 {[%emt 0:00:06]} Rb5 {[%emt 0:00:32]} 94. Kd4 {[%emt 0:00:09]} Rb4+ {[%emt 0:00:19]} 95. Kd5 {[%emt 0:00:08]} Rb6 {[%emt 0:00:08]} 96. Ra5 {[%emt 0:00:13]} Rb4 {[%emt 0:00:13]} 97. Bd3 {[%emt 0:00:18]} Kb6 {[%emt 0:00:07]} 98. Ra6+ {[%emt 0:00:03]} Kb7 {[%emt 0:00:01]} 99. Kc5 {[%emt 0:00:12]} Rh4 {[%emt 0:00:08]} 100. Rb6+ {[%emt 0:00:09]} Kc7 {[%emt 0:00:03]} 101. Rf6 {[%emt 0:00:17]} Kd7 {[%emt 0:00:10]} 102. Bc4 {[%emt 0:00:07]} Rh7 {[%emt 0:00:15]} 103. Re6 {[%emt 0:00:15]} Rg7 {[%emt 0:00:08]} 104. Bd5 {[%emt 0:00:02]} Rg1 {[%emt 0:00:13]} 105. Rf6 {[%emt 0:00:15]} Rc1+ {[%emt 0:00:15]} 106. Bc4 {[%emt 0:00:02]} Ke7 {[%emt 0:00:03]} 107. Rf7+ {[%emt 0:00:02]} Ke8 {[%emt 0:00:01]} 108. Ra7 {[%emt 0:00:05]} Kf8 {[%emt 0:00:06]} 109. Kd5 {[%emt 0:00:07]} Rd1+ {[%emt 0:00:05]} 110. Ke6 {[%emt 0:00:07]} Rc1 {[%emt 0:00:31]} 111. Kf6 {[%emt 0:00:09]} Ke8 {[%emt 0:00:05]} 112. Ra8+ {[%emt 0:00:21]} 1/2-1/2

[Event "FIDE Womens World Cup 2021"]
[Site "Sochi"]
[Date "2021.07.14"]
[Round "1.4"]
[White "Aliaga Fernandez, Ingrid Y"]
[Black "Salimova, Nurgyul"]
[Result "0-1"]
[ECO "B15"]
[WhiteElo "2191"]
[BlackElo "2395"]
[Annotator "NA"]
[PlyCount "122"]
[EventDate "2021.07.12"]
[EventType "k.o."]
[EventCountry "RUS"]
[SourceTitle "playchess.com"]
[Source "ChessBase"]
[SourceQuality "1"]
[TimeControl "1500+10"]

1. e4 {[%emt 0:00:04]} c6 {[%emt 0:00:03]} 2. d4 {[%emt 0:00:03]} d5 {[%emt 0:00:01]} 3. Nc3 {[%emt 0:00:01]} dxe4 {[%emt 0:00:03]} 4. Nxe4 {[%emt 0:00:02]} Nf6 {[%emt 0:00:02]} 5. Nxf6+ {[%emt 0:00:02]} exf6 {[%emt 0:00:01]} 6. c3 {[%emt 0:00:02]} Bd6 {[%emt 0:00:10]} 7. Bd3 {[%emt 0:00:02]} O-O {[%emt 0:00:06]} 8. Qc2 {[%emt 0:00:02]} Re8+ {[%emt 0:00:02]} 9. Ne2 {[%emt 0:00:03]} h5 {[%emt 0:00:06]} 10. Be3 {[%emt 0:00:24]} Nd7 {[%emt 0:00:41]} 11. O-O-O {[%emt 0:00:03]} b5 {[%emt 0:00:13]} 12. Kb1 {[%emt 0:01:58]} Nb6 {[%emt 0:00:27]} 13. Nf4 {[%emt 0:01:34]} Bxf4 {[%emt 0:00:13]} 14. Bxf4 {[%emt 0:00:02]} Be6 {[%emt 0:01:12]} 15. Bc1 {[%emt 0:00:31]} a5 {[%emt 0:00:17]} 16. Be4 {[%emt 0:01:11]} Bd5 {[%emt 0:00:20]} 17. Rhe1 {[%emt 0:00:55]} Qd7 {[%emt 0:05:20]} 18. h3 {[%emt 0:02:09]} b4 {[%emt 0:00:43]} 19. Bh7+ {[%emt 0:01:47]} Kh8 {[%emt 0:00:43]} 20. Bf5 {[%emt 0:00:10]} Qb7 {[%emt 0:05:53]} 21. g4 {[%emt 0:00:24]} bxc3 {[%emt 0:02:54]} 22. Qxc3 {[%emt 0:00:47]} h4 {[%emt 0:00:54]} 23. g5 {[%emt 0:00:06]} fxg5 {[%emt 0:01:21]} 24. Bxg5 {[%emt 0:00:17]} Qc7 {[%emt 0:01:06]} 25. Bc2 {[%emt 0:01:00]} Qd6 {[%emt 0:01:29]} 26. Bxh4 {[%emt 0:02:36]} a4 {[%emt 0:01:04]} 27. Bg3 {[%emt 0:00:34]} Qh6 {[%emt 0:00:18]} 28. Bd3 {[%emt 0:04:49]} Re6 {[%emt 0:01:07]} 29. Bc7 {[%emt 0:00:49]} Nd7 {[%emt 0:00:51]} 30. Bf5 {[%emt 0:01:18]} Rxe1 {[%emt 0:00:46]} 31. Rxe1 {[%emt 0:00:02]} Nf8 {[%emt 0:00:07]} 32. Bg3 {[%emt 0:01:50]} Ne6 {[%emt 0:00:09]} 33. Rg1 {[%emt 0:01:23]} Qf6 {[%emt 0:00:09]} 34. Bxe6 {[%emt 0:00:55]} Qxe6 {[%emt 0:00:25]} 35. a3 {[%emt 0:00:10]} Qf5+ {[%emt 0:00:11]} 36. Ka1 {[%emt 0:00:04]} Re8 {[%emt 0:00:06]} 37. h4 {[%emt 0:02:47]} f6 {[%emt 0:00:17]} 38. Re1 {[%emt 0:00:19]} Rxe1+ {[%emt 0:00:32]} 39. Qxe1 {[%emt 0:00:01]} Bg8 {[%emt 0:00:40]} 40. Qd1 {[%emt 0:00:20]} Qd5 {[%emt 0:00:05]} 41. Kb1 {[%emt 0:00:02]} Qa2+ {[%emt 0:00:13]} 42. Kc1 {[%emt 0:00:01]} Qa1+ {[%emt 0:00:10]} 43. Kd2 {[%emt 0:00:01]} Qxb2+ {[%emt 0:00:05]} 44. Ke1 {[%emt 0:00:01]} Qb5 {[%emt 0:00:35]} 45. Qe2 {[%emt 0:00:28]} Qb1+ {[%emt 0:00:06]} 46. Qd1 {[%emt 0:00:01]} Qe4+ {[%emt 0:00:08]} 47. Qe2 {[%emt 0:00:01]} Qh1+ {[%emt 0:00:09]} 48. Kd2 {[%emt 0:00:01]} Qd5 {[%emt 0:00:04]} 49. Ke3 {[%emt 0:00:49]} Bf7 {[%emt 0:00:05]} 50. Qd3 {[%emt 0:00:06]} Kg8 {[%emt 0:00:31]} 51. Qe4 {[%emt 0:00:10]} Qb3+ {[%emt 0:00:03]} 52. Qd3 {[%emt 0:00:03]} Qb2 {[%emt 0:00:09]} 53. Bd6 {[%emt 0:00:11]} Qc1+ {[%emt 0:00:16]} 54. Qd2 {[%emt 0:00:05]} Qh1 {[%emt 0:00:05]} 55. Qb4 {[%emt 0:00:06]} Qxh4 {[%emt 0:00:09]} 56. Qxa4 {[%emt 0:00:19]} Bd5 {[%emt 0:00:02]} 57. Bg3 {[%emt 0:00:24]} Qe4+ {[%emt 0:00:06]} 58. Kd2 {[%emt 0:00:00]} Qb1 {[%emt 0:00:07]} 59. Qb4 {[%emt 0:00:05]} Qa2+ {[%emt 0:00:08]} 60. Kc3 {[%emt 0:00:15]} Qe2 {[%emt 0:00:08]} 61. a4 {[%emt 0:00:06]} Qe1+ {[%emt 0:00:02]} 0-1